fUST/lending_fUST_20260426
["ID","MTS","AMOUNT","RATE_DAILY","PERIOD"]
[421180320,1777216238834,-151.0,0.00015345,2]
[421180321,1777216238844,-645.794,0.00015421,2]
[421180322,1777216238853,-668.65185757,0.00015457,2]
[421180323,1777216238863,-2150.738,0.00015457,2]
[421180324,1777216238873,-672.07153097,0.000155,2]
[421180325,1777216238883,-293.2971361,0.000156,2]
[421180326,1777216238893,-328.08200355,0.00015652,2]
[421180327,1777216238903,-500.0,0.00015652,2]
[421180328,1777216238913,-500.0,0.00015652,2]
[421180329,1777216238923,-500.0,0.00015652,2]
[421180330,1777216238932,-300.0,0.00015652,2]
[421180331,1777216238942,-303.17588218,0.00015652,2]
[421180332,1777216238952,-318.57283514,0.00015652,2]
[421180333,1777216238962,-500.0,0.00015652,2]
[421180334,1777216238971,-500.0,0.00015652,2]
[421180335,1777216238981,-500.0,0.00015652,2]
[421180336,1777216238991,-229.3090103,0.00015652,2]
[421180337,1777216239001,-431.34366677,0.00015652,2]
[421180338,1777216239010,-55175.97229866,0.00015653,2]
[421180356,1777216243670,-557.18407237,0.00015653,2]
[421180375,1777216246742,-88.81592763,0.00015653,2]
[421180376,1777216246751,-20392.09540788,0.00015653,2]
[421180377,1777216246982,-7841.18852968,0.00015653,2]
[421180378,1777216247038,-4786.65037751,0.00015653,2]
[421180379,1777216345499,500.0,0.00025184,120]
[421180381,1777216426917,603.0212,0.00025184,120]
[421180382,1777216426963,603.0212,0.00025184,120]
[421180383,1777216427008,603.0212,0.00025184,120]
[421180384,1777216427046,603.0212,0.00025184,120]
[421180385,1777216427091,603.0212,0.00025184,120]
[421180386,1777216427128,603.0212,0.00025184,120]
[421180387,1777216427190,603.0212,0.00025184,120]
[421180388,1777216427380,603.0212,0.00025184,120]
[421180390,1777216554316,3379.75891155,0.00024,120]
[421180392,1777216644418,500.0,0.00025305,120]
[421180393,1777216682230,451.04602361,0.00025305,120]
[421180394,1777216685009,1578.28284438,0.00025305,120]
[421180397,1777216753305,-2500.0,0.00013292,10]
[421180399,1777216863421,354.48657761,0.00024,120]
[421180403,1777216944700,500.0,0.00025337,120]
[421180409,1777217202135,-244.97231778,0.00012678,10]
[421180410,1777217245557,500.0,0.00025346,120]
[421180415,1777217423610,290.0638629,0.00025346,120]
[421180436,1777217432629,-608.24692022,0.00012301,10]
[421180570,1777217439076,-4391.75307978,0.00012301,10]
[421180571,1777217439086,-2255.02768222,0.00012425,10]
[421180572,1777217439096,-1200.0,0.00012614,2]
[421180573,1777217439106,-223.25951318,0.00012615,2]
[421180574,1777217439115,-200.0,0.00012806,2]
[421180575,1777217439124,-250.0,0.00012877,2]
[421180576,1777217439134,-300.0,0.00013157,2]
[421180577,1777217439143,-300.0,0.00013157,2]
[421180578,1777217439153,-300.0,0.00013157,2]
[421180579,1777217439163,-300.0,0.00013157,2]
[421180580,1777217439172,-300.0,0.00013157,2]
[421180581,1777217439182,-1000.0,0.00013699,2]
[421180582,1777217439191,-300.0,0.00013972,2]
[421180583,1777217439201,-300.0,0.00013972,2]
[421180584,1777217439210,-300.0,0.00013972,2]
[421180585,1777217439220,-300.0,0.00013972,2]
[421180586,1777217439230,-300.0,0.00013972,2]
[421180587,1777217439240,-300.0,0.00013972,2]
[421180588,1777217439249,-300.0,0.00013972,2]
[421180589,1777217439258,-300.0,0.00013972,2]
[421180590,1777217439267,-300.0,0.00013972,2]
[421180591,1777217439277,-300.0,0.00013972,2]
[421180592,1777217439287,-300.0,0.00013972,2]
[421180593,1777217439296,-300.0,0.00013972,2]
[421180594,1777217439306,-300.0,0.00013972,2]
[421180595,1777217439316,-300.0,0.00013972,2]
[421180596,1777217439325,-300.0,0.00013972,2]
[421180597,1777217439334,-600.0,0.0001425,2]
[421180598,1777217439343,-420.0,0.00014427,2]
[421180599,1777217439352,-263.44622555,0.00014615,2]
[421180600,1777217439362,-210.7254,0.00014918,2]
[421180601,1777217439371,-2150.738,0.0001518,2]
[421180602,1777217439381,-320.95281519,0.00015243,2]
[421180603,1777217439390,-85587.69448243,0.00015244,2]
[421180604,1777217439403,-1614412.30551757,0.00015244,2]
[421180605,1777217439414,-500.0,0.00015343,2]
[421180606,1777217439425,-500.0,0.00015343,2]
[421180607,1777217439435,-500.0,0.00015343,2]
[421180608,1777217439444,-500.0,0.00015343,2]
[421180609,1777217439453,-500.0,0.00015343,2]
[421180610,1777217439463,-500.0,0.00015343,2]
[421180611,1777217439472,-500.0,0.00015343,2]
[421180612,1777217439481,-196.85940731,0.00015343,2]
[421180613,1777217439490,-500.0,0.00015343,2]
[421180614,1777217439500,-500.0,0.00015343,2]
[421180615,1777217439509,-485.50431375,0.00015343,2]
[421180616,1777217439519,-500.0,0.00015343,2]
[421180617,1777217439528,-500.0,0.00015343,2]
[421180618,1777217439538,-500.0,0.00015343,2]
[421180619,1777217439547,-500.0,0.00015343,2]
[421180620,1777217439556,-500.0,0.00015343,2]
[421180621,1777217439566,-500.0,0.00015343,2]
[421180622,1777217439575,-500.0,0.00015343,2]
[421180623,1777217439583,-500.0,0.00015343,2]
[421180624,1777217439593,-500.0,0.00015343,2]
[421180625,1777217439602,-500.0,0.00015343,2]
[421180626,1777217439611,-500.0,0.00015343,2]
[421180627,1777217439620,-500.0,0.00015343,2]
[421180628,1777217439630,-500.0,0.00015343,2]
[421180629,1777217439639,-500.0,0.00015343,2]
[421180630,1777217439648,-500.0,0.00015343,2]
[421180631,1777217439657,-500.0,0.00015343,2]
[421180632,1777217439666,-500.0,0.00015343,2]
[421180633,1777217439675,-500.0,0.00015343,2]
[421180634,1777217439684,-500.0,0.00015343,2]
[421180635,1777217439693,-500.0,0.00015343,2]
[421180636,1777217439703,-500.0,0.00015343,2]
[421180637,1777217439712,-500.0,0.00015343,2]
[421180638,1777217439721,-500.0,0.00015343,2]
[421180639,1777217439731,-500.0,0.00015343,2]
[421180640,1777217439740,-500.0,0.00015343,2]
[421180641,1777217439749,-500.0,0.00015343,2]
[421180642,1777217439758,-500.0,0.00015343,2]
[421180643,1777217439767,-500.0,0.00015343,2]
[421180644,1777217439776,-272.81322044,0.00015343,2]
[421180645,1777217439786,-500.0,0.00015343,2]
[421180646,1777217439795,-609.5004793,0.00015343,2]
[421180647,1777217439804,-307309.83783271,0.00015344,2]
[421180648,1777217439813,-500.0,0.00015373,2]
[421180649,1777217439822,-500.0,0.00015373,2]
[421180650,1777217439831,-500.0,0.00015373,2]
[421180651,1777217439840,-500.0,0.00015373,2]
[421180652,1777217439849,-500.0,0.00015373,2]
[421180653,1777217439858,-500.0,0.00015373,2]
[421180654,1777217439868,-1044388.53187516,0.00015386,2]
[421180655,1777217439877,-500.0,0.00015407,2]
[421180656,1777217439886,-10948.5276108,0.00015408,2]
[421180657,1777217439896,-1673.0636604,0.00015408,2]
[421180658,1777217439906,-1227.663265,0.00015408,2]
[421180659,1777217439915,-442.0,0.00015489,2]
[421180660,1777217439924,-183.0,0.00015489,2]
[421180661,1777217439934,-185.0,0.00015489,2]
[421180662,1777217439943,-160.0,0.00015497,2]
[421180663,1777217439954,-537.65722478,0.000155,2]
[421180664,1777217439964,-155.0,0.00015552,2]
[421180665,1777217439973,-500.0,0.00015552,2]
[421180666,1777217439983,-500.0,0.00015552,2]
[421180667,1777217439992,-444.36,0.00015552,2]
[421180668,1777217440001,-250.0,0.000156,2]
[421180669,1777217440011,-250.0,0.000156,3]
[421180670,1777217440021,-720.0,0.00015675,2]
[421180671,1777217440032,-537.65722478,0.000157,2]
[421180672,1777217440042,-630.326235,0.000157,2]
[421180673,1777217440052,-2367.84005831,0.00015728,2]
[421180674,1777217440061,-44816.71172321,0.00015732,2]
[421180675,1777217440071,-3011.0,0.00015753,2]
[421180676,1777217440080,-537.65722478,0.000158,2]
[421180677,1777217440089,-213.0,0.00015819,2]
[421180678,1777217440099,-1000.0,0.00015921,2]
[421180679,1777217440109,-504.83158523,0.00015921,2]
[421180680,1777217440118,-1000.0,0.00015921,2]
[421180681,1777217440127,-1097.11583882,0.00015921,2]
[421180682,1777217440136,-1000.0,0.00015921,2]
[421180683,1777217440146,-1000.0,0.00015921,2]
[421180684,1777217440155,-160.0,0.0001596,4]
[421180685,1777217440165,-307.266,0.00015973,2]
[421180686,1777217440174,-189.74118105,0.00015973,2]
[421180687,1777217440185,-150.0,0.00016,2]
[421180688,1777217440195,-537.65722478,0.00016,2]
[421180689,1777217440207,-375.23274798,0.00016,2]
[421180690,1777217440216,-151.0,0.00016,2]
[421180691,1777217440226,-151.0,0.00016,2]
[421180692,1777217440235,-151.0,0.00016,2]
[421180693,1777217440245,-151.0,0.00016,2]
[421180694,1777217440254,-250.2831511,0.00016,2]
[421180696,1777217440264,-250.0,0.00016,3]
[421180697,1777217440273,-151.0,0.00016,2]
[421180698,1777217440282,-151.0,0.00016,2]
[421180699,1777217440291,-151.0,0.00016041,2]
[421180700,1777217440300,-151.0,0.00016041,2]
[421180701,1777217440309,-537.65722478,0.000161,2]
[421180702,1777217440318,-151.0,0.00016195,2]
[421180703,1777217440327,-375.23274798,0.000162,2]
[421180704,1777217440337,-1466.37784001,0.00016229,2]
[421180705,1777217440346,-375.23274798,0.000163,2]
[421180706,1777217440356,-500.0,0.00016438,2]
[421180707,1777217440365,-500.0,0.00016438,2]
[421180708,1777217440374,-1282.0,0.00016438,2]
[421180709,1777217440383,-151.0,0.00016438,2]
[421180710,1777217440392,-151.0,0.00016438,2]
[421180711,1777217440402,-151.0,0.00016438,2]
[421180712,1777217440411,-151.0,0.00016438,2]
[421180713,1777217440421,-1500.0,0.00016468,2]
[421180715,1777217440430,-160.9917197,0.00016468,2]
[421180716,1777217440440,-1500.0,0.00016468,2]
[421180717,1777217440449,-1500.0,0.00016468,2]
[421180718,1777217440459,-375.23274798,0.000165,2]
[421180719,1777217440468,-252.51017767,0.00016586,30]
[421180720,1777217440478,-375.23274798,0.000166,2]
[421180721,1777217440488,-260.0,0.00016603,2]
[421180722,1777217440497,-303.63293792,0.00016615,2]
[421180723,1777217440506,-212.54927435,0.00016665,2]
[421180724,1777217440515,-151.0,0.00016712,2]
[421180725,1777217440524,-800.0,0.0001674,2]
[421180726,1777217440533,-234.0,0.0001678,2]
[421180727,1777217440544,-200.0,0.000168,2]
[421180728,1777217440553,-99349.33418686,0.000168,15]
[421180729,1777217440564,-223.714501,0.000168,2]
[421180730,1777217440574,-151.0,0.000168,2]
[421180731,1777217440583,-151.0,0.000168,2]
[421180732,1777217440593,-278.832441,0.000168,2]
[421180733,1777217440602,-151.0,0.000168,2]
[421180734,1777217440611,-151.0,0.000168,2]
[421180735,1777217440621,-268.077727,0.000168,2]
[421180736,1777217440631,-151.0,0.000168,2]
[421180737,1777217440641,-151.0,0.000168,2]
[421180738,1777217440650,-151.228264,0.000168,2]
[421180739,1777217440660,-151.0,0.000168,2]
[421180740,1777217440669,-151.0,0.000168,2]
[421180741,1777217440678,-151.0,0.000168,2]
[421180742,1777217440688,-151.0,0.000168,2]
[421180743,1777217440697,-801.35453771,0.00016825,2]
[421180744,1777217440705,-160.0,0.00016883,5]
[421180745,1777217440714,-1063.0,0.000169,2]
[421180746,1777217440723,-32217.91939,0.000169,2]
[421180747,1777217440733,-154.637272,0.000169,2]
[421180748,1777217440741,-151.559762,0.000169,2]
[421180749,1777217440751,-151.0,0.000169,2]
[421180750,1777217440759,-151.0,0.00016905,2]
[421180751,1777217440768,-273.0,0.00016938,2]
[421180752,1777217440777,-160.0,0.00016954,2]
[421180753,1777217440786,-2509.350997,0.00016954,2]
[421180754,1777217440796,-4858.701995,0.00016954,2]
[421180755,1777217440805,-196.135188,0.00016954,7]
[421180756,1777217440814,-500.0,0.00016973,2]
[421180757,1777217440823,-500.0,0.00016973,2]
[421180758,1777217440832,-501.66173427,0.00016973,2]
[421180759,1777217440842,-500.0,0.00016973,2]
[421180761,1777217440851,-500.0,0.00016973,2]
[421180762,1777217440860,-500.0,0.00016973,2]
[421180764,1777217440869,-150.0,0.00016973,2]
[421180766,1777217440879,-150.0,0.00016973,2]
[421180768,1777217440889,-500.0,0.00016973,2]
[421180770,1777217440899,-500.0,0.00016973,2]
[421180772,1777217440909,-500.0,0.00016973,2]
[421180774,1777217440918,-500.0,0.00016973,2]
[421180775,1777217440928,-500.0,0.00016973,2]
[421180777,1777217440937,-500.0,0.00016973,2]
[421180779,1777217440946,-500.0,0.00016973,2]
[421180781,1777217440956,-500.0,0.00016973,2]
[421180783,1777217440965,-500.0,0.00016973,2]
[421180785,1777217440974,-160.6181215,0.00016973,2]
[421180787,1777217440985,-500.0,0.00016973,2]
[421180789,1777217440994,-526.0448282,0.00016973,2]
[421180791,1777217441003,-500.0,0.00016973,2]
[421180793,1777217441012,-165.63890498,0.00016973,2]
[421180795,1777217441021,-500.0,0.00016973,2]
[421180797,1777217441031,-500.0,0.00016973,2]
[421180798,1777217441040,-500.0,0.00016973,2]
[421180800,1777217441049,-246.4183715,0.00016973,2]
[421180802,1777217441059,-500.33603885,0.00016973,2]
[421180804,1777217441068,-500.0,0.00016973,2]
[421180806,1777217441077,-500.0,0.00016973,2]
[421180808,1777217441087,-500.0,0.00016973,2]
[421180810,1777217441096,-178.73240268,0.00016973,2]
[421180812,1777217441105,-500.0,0.00016973,2]
[421180813,1777217441115,-500.0,0.00016973,2]
[421180815,1777217441124,-500.0,0.00016973,2]
[421180817,1777217441134,-500.0,0.00016973,2]
[421180819,1777217441143,-500.0,0.00016973,2]
[421180821,1777217441154,-250.0,0.00016975,2]
[421180823,1777217441163,-350.0,0.00016978,2]
[421180825,1777217441172,-450.0,0.00016981,2]
[421180826,1777217441182,-550.0,0.00016984,2]
[421180828,1777217441192,-151.0,0.00016986,2]
[421180830,1777217441201,-1282.0,0.00016986,2]
[421180832,1777217441210,-752.46238785,0.00016986,2]
[421180834,1777217441219,-151.0,0.00016986,2]
[421180836,1777217441228,-151.0,0.00016986,2]
[421180838,1777217441238,-151.0,0.00016986,2]
[421180840,1777217441248,-1000.0,0.00016999,2]
[421180842,1777217441257,-1000.0,0.00016999,3]
[421180843,1777217441266,-1000.0,0.00016999,4]
[421180845,1777217441276,-1000.0,0.00016999,5]
[421180847,1777217441285,-155.0,0.00016999,2]
[421180849,1777217441294,-13622.32602362,0.00017,2]
[421180852,1777217441311,-6247.82559765,0.00017,2]
[421180854,1777217441330,-240032.62430154,0.00017,2]
[421180857,1777217441341,-1268.88875421,0.00017,2]
[421180890,1777217444353,-27.21914642,0.00016229,2]
[421180897,1777217447219,-5000.0,0.00016803,10]
[421180898,1777217447229,-666.0,0.00016836,2]
[421180899,1777217447239,-160.0,0.00016836,2]
[421180900,1777217447249,-3795.969798,0.00016836,2]
[421180901,1777217447258,-7431.939597,0.00016836,2]
[421180902,1777217447268,-968.51217786,0.00016973,2]
[421180903,1777217447278,-2641.17463522,0.00017,2]
[421180904,1777217451515,184.96481587,0.00025346,120]
[421180906,1777217546328,500.0,0.00025346,120]
[421180920,1777217852986,500.0,0.00025168,120]
[421180944,1777218039025,200.0,0.00024,120]
[421180952,1777218144774,500.0,0.0002519,120]
[421180960,1777218303824,505.43366545,0.00017,120]
[421180972,1777218445073,500.0,0.00025215,120]
[421180976,1777218619533,500.0,0.00024657,120]
[421180984,1777218631892,-3019.84429039,8.137e-05,10]
[421180985,1777218631947,-1980.15570961,8.137e-05,10]
[421180987,1777218631956,-535.0,8.219e-05,2]
[421180988,1777218631966,-226.48834486,8.219e-05,2]
[421180990,1777218631975,-788.0,8.219e-05,2]
[421180992,1777218631985,-267.25624693,0.00010219,2]
[421181013,1777218632196,-250.0,0.0001086,2]
[421181015,1777218632206,-308.024149,0.00012219,2]
[421181017,1777218632215,-1200.0,0.0001282,2]
[421181019,1777218632225,-300.0,0.00012821,2]
[421181021,1777218632234,-300.0,0.00012821,2]
[421181023,1777218632243,-300.0,0.00012821,2]
[421181025,1777218632252,-180.79387306,0.00012822,2]
[421181027,1777218632261,-151.0,0.00012822,2]
[421181029,1777218632271,-151.0,0.00012822,2]
[421181031,1777218632280,-151.0,0.00012822,2]
[421181033,1777218632289,-151.0,0.00012822,2]
[421181035,1777218632298,-151.0,0.00012822,2]
[421181037,1777218632307,-151.0,0.00012822,2]
[421181039,1777218632316,-151.0,0.00012822,2]
[421181041,1777218632325,-151.0,0.00012822,2]
[421181042,1777218632335,-151.0,0.00012822,2]
[421181045,1777218632345,-151.0,0.00012822,2]
[421181047,1777218632355,-151.0,0.00012822,2]
[421181048,1777218632364,-151.0,0.00012822,2]
[421181050,1777218632374,-151.0,0.00012822,2]
[421181052,1777218632383,-151.0,0.00012822,2]
[421181054,1777218632392,-151.0,0.00012822,2]
[421181056,1777218632401,-151.0,0.00012822,2]
[421181058,1777218632411,-151.0,0.00012822,2]
[421181060,1777218632420,-151.0,0.00012822,2]
[421181062,1777218632430,-151.0,0.00012822,2]
[421181064,1777218632439,-159.64313114,0.00012822,2]
[421181066,1777218632448,-1221.81149655,0.0001283,2]
[421181069,1777218632460,-1093.98275846,0.0001283,2]
[421181223,1777218638224,-1791.536,0.00012702,10]
[421181224,1777218638239,-3208.464,0.00012702,10]
[421181225,1777218638250,-7611.92583404,0.0001283,2]
[421181226,1777218638426,-22963.40003369,0.0001283,2]
[421181227,1777218638436,-300.0,0.00013086,2]
[421181228,1777218638446,-300.0,0.00013086,2]
[421181229,1777218638455,-300.0,0.00013086,2]
[421181231,1777218638465,-300.0,0.00013086,2]
[421181232,1777218638475,-300.0,0.00013086,2]
[421181233,1777218638486,-300.0,0.00013086,2]
[421181234,1777218638496,-300.0,0.00013086,2]
[421181235,1777218638505,-300.0,0.00013086,2]
[421181236,1777218638515,-300.0,0.00013086,2]
[421181237,1777218638524,-300.0,0.00013086,2]
[421181238,1777218638534,-300.0,0.00013086,2]
[421181239,1777218638543,-300.0,0.00013086,2]
[421181240,1777218638553,-300.0,0.00013086,2]
[421181241,1777218638562,-300.0,0.00013086,2]
[421181242,1777218638572,-300.0,0.00013086,2]
[421181243,1777218638582,-600.0,0.00013347,2]
[421181244,1777218638591,-300.77775901,0.00013598,2]
[421181245,1777218638601,-515.8027815,0.00013598,2]
[421181246,1777218638611,-188.53993415,0.00013598,2]
[421181247,1777218638619,-500.0,0.00013598,2]
[421181248,1777218638629,-500.0,0.00013598,2]
[421181249,1777218638638,-500.0,0.00013598,2]
[421181250,1777218638648,-500.0,0.00013598,2]
[421181251,1777218638657,-570.92723543,0.00013598,2]
[421181252,1777218638667,-6526.16382696,0.00013599,2]
[421181253,1777218638680,-147480.61844812,0.00013599,2]
[421181254,1777218638692,-500.0,0.00013599,2]
[421181255,1777218638701,-317.02134057,0.00013599,2]
[421181256,1777218638711,-1000.0,0.00013699,2]
[421181257,1777218638721,-253.92634544,0.00013699,2]
[421181258,1777218638730,-500.0,0.00013873,2]
[421181259,1777218638740,-5134.61928047,0.00013971,2]
[421181260,1777218638749,-368.0,0.00014063,2]
[421181261,1777218638758,-300.0,0.00014063,2]
[421181262,1777218638768,-420.0,0.00014063,2]
[421181263,1777218638778,-1680.0,0.00014102,2]
[421181264,1777218638788,-500.0,0.00014147,2]
[421181265,1777218638799,-317.02134054,0.00014189,2]
[421181266,1777218638808,-348.79205108,0.00014219,2]
[421181267,1777218638817,-500.0,0.00014421,2]
[421181268,1777218638827,-291.24637229,0.00014555,2]
[421181269,1777218638836,-720.0,0.00014681,2]
[421181270,1777218638845,-500.0,0.00014695,2]
[421181271,1777218638855,-317.02134054,0.00014778,2]
[421181272,1777218638864,-291.38989044,0.00014969,2]
[421181273,1777218638873,-1008.0,0.00015,6]
[421181274,1777218638883,-160.0,0.00015037,3]
[421181275,1777218638892,-537.6845,0.00015047,2]
[421181276,1777218638901,-438.44861291,0.00015047,2]
[421181277,1777218638910,-2150.738,0.00015047,2]
[421181278,1777218638920,-324.26757007,0.00015102,2]
[421181279,1777218638929,-361.48,0.00015174,2]
[421181280,1777218638938,-500.0,0.00015179,2]
[421181281,1777218638947,-500.0,0.00015243,2]
[421181282,1777218638956,-500.0,0.00015243,2]
[421181283,1777218638966,-500.28848137,0.00015243,2]
[421181284,1777218638976,-1099.95454265,0.00015265,2]
[421181285,1777218638985,-500.0,0.00015342,2]
[421181286,1777218638994,-500.0,0.00015343,2]
[421181287,1777218639003,-500.0,0.00015343,2]
[421181288,1777218639011,-500.0,0.00015343,2]
[421181289,1777218639020,-500.0,0.00015343,2]
[421181290,1777218639029,-500.0,0.00015343,2]
[421181291,1777218639039,-500.0,0.00015343,2]
[421181292,1777218639048,-500.0,0.00015343,2]
[421181293,1777218639058,-624.24,0.00015343,2]
[421181294,1777218639068,-317.02134054,0.00015368,2]
[421181295,1777218639079,-587.0,0.00015425,2]
[421181296,1777218639089,-166.0,0.00015471,2]
[421181297,1777218639099,-160.0,0.00015495,2]
[421181298,1777218639110,-2852.89685604,0.000155,2]
[421181299,1777218639119,-977.0,0.00015512,2]
[421181300,1777218639131,-442.0,0.00015589,2]
[421181301,1777218639142,-185.0,0.00015589,2]
[421181302,1777218639152,-2230.315306,0.00015595,2]
[421181303,1777218639162,-2852.89685604,0.000157,2]
[421181304,1777218639172,-2852.89685604,0.000158,2]
[421181305,1777218639181,-317.02134054,0.00015957,2]
[421181306,1777218639191,-160.0,0.0001596,4]
[421181307,1777218639201,-400.46853874,0.00016,2]
[421181308,1777218639211,-2852.89685604,0.00016,2]
[421181309,1777218639221,-5568.83866362,0.00016,2]
[421181310,1777218639231,-300.0,0.00016,2]
[421181311,1777218639240,-891.0,0.00016052,2]
[421181312,1777218639251,-891.0,0.00016052,2]
[421181313,1777218639260,-891.0,0.00016052,2]
[421181314,1777218639269,-891.0,0.00016052,2]
[421181315,1777218639278,-891.0,0.00016052,2]
[421181316,1777218639288,-891.0,0.00016052,2]
[421181317,1777218639297,-891.0,0.00016052,2]
[421181318,1777218639307,-891.0,0.00016052,2]
[421181319,1777218639317,-891.0,0.00016052,2]
[421181320,1777218639326,-891.0,0.00016052,2]
[421181321,1777218639335,-891.0,0.00016052,2]
[421181322,1777218639345,-891.0,0.00016052,2]
[421181323,1777218639354,-891.0,0.00016052,2]
[421181324,1777218639364,-891.0,0.00016052,2]
[421181325,1777218639374,-891.0,0.00016052,2]
[421181326,1777218639383,-891.0,0.00016052,2]
[421181327,1777218639393,-891.0,0.00016052,2]
[421181328,1777218639402,-891.0,0.00016052,2]
[421181329,1777218639412,-891.0,0.00016052,2]
[421181330,1777218639421,-891.0,0.00016052,2]
[421181331,1777218639431,-891.0,0.00016052,2]
[421181332,1777218639440,-891.0,0.00016052,2]
[421181333,1777218639450,-891.0,0.00016052,2]
[421181334,1777218639459,-898.00268781,0.00016052,2]
[421181335,1777218639468,-2852.89685604,0.000161,2]
[421181336,1777218639477,-500.0,0.000161,2]
[421181337,1777218639486,-2312.83697232,0.00016143,2]
[421181338,1777218639496,-864.0,0.0001615,2]
[421181339,1777218639506,-297.654,0.0001616,2]
[421181340,1777218639516,-327.6708536,0.00016195,2]
[421181341,1777218639526,-400.46853874,0.000162,2]
[421181342,1777218639536,-5568.83866362,0.000162,2]
[421181343,1777218639546,-791.0,0.000162,2]
[421181344,1777218639555,-389.55995315,0.00016219,2]
[421181345,1777218639565,-195.9491867,0.0001625,2]
[421181346,1777218639574,-400.46853874,0.000163,2]
[421181347,1777218639583,-2852.89685604,0.000163,2]
[421181348,1777218639592,-5568.83866362,0.000163,2]
[421181349,1777218639602,-151.0,0.000163,2]
[421181350,1777218639611,-244.05,0.00016422,2]
[421181351,1777218639621,-400.46853874,0.000165,2]
[421181352,1777218639630,-2852.89685604,0.000165,2]
[421181353,1777218639639,-5568.83866362,0.000165,2]
[421181356,1777218639649,-151.0,0.000165,2]
[421181357,1777218639658,-1340.45155,0.000165,2]
[421181358,1777218639668,-400.46853874,0.000166,2]
[421181359,1777218639677,-2852.89685604,0.000166,2]
[421181360,1777218639686,-5568.83866362,0.000166,2]
[421181361,1777218639696,-2131.52596396,0.0001666,2]
[421181362,1777218639704,-2398.4119403,0.00016691,2]
[421181363,1777218639714,-2852.89685604,0.000168,2]
[421181364,1777218639723,-5568.83866362,0.000168,2]
[421181365,1777218639733,-151.0,0.000168,2]
[421181366,1777218639743,-166.0,0.00016841,2]
[421181367,1777218639752,-160.0,0.00016856,7]
[421181368,1777218639762,-392.688663,0.00016856,7]
[421181369,1777218639770,-625.377327,0.00016856,7]
[421181370,1777218639780,-160.0,0.00016856,2]
[421181371,1777218639789,-3606.243214,0.00016856,2]
[421181372,1777218639798,-7052.486429,0.00016856,2]
[421181373,1777218639807,-160.0,0.00016856,7]
[421181374,1777218639816,-14237.80051,0.00016856,7]
[421181375,1777218639825,-28315.60102,0.00016856,7]
[421181376,1777218639834,-160.0,0.00016874,7]
[421181377,1777218639843,-160.0,0.00016874,2]
[421181378,1777218639852,-6074.849866,0.00016874,7]
[421181379,1777218639861,-1349.566923,0.00016874,2]
[421181380,1777218639871,-2539.133846,0.00016874,2]
[421181381,1777218639880,-11989.699732,0.00016874,7]
[421181382,1777218639889,-160.0,0.00016883,5]
[421181383,1777218639898,-2852.89685604,0.000169,2]
[421181384,1777218639907,-330.14,0.00016915,2]
[421181385,1777218639916,-585.73,0.00016915,2]
[421181386,1777218639926,-823.0,0.0001692,2]
[421181387,1777218639935,-264.528488,0.00016954,7]
[421181388,1777218639945,-15883.8622415,0.00016989,2]
[421181389,1777218640153,-181.2210634,0.00016989,2]
[421181390,1777218640163,-2988.0418119,0.00016989,2]
[421181392,1777218640173,-341222.81488899,0.00017,2]